Cogmind - Beta 14 @@@ ROGUE MODE // 2024.08.26 @ 18:57:52 Player: Coronach Result: Destroyed self with Grenade Launcher Performance ------------- Evolutions (0) 0 Regions Visited (2) 400 Robots Destroyed (29) 145 Value Destroyed (564) 564 Prototype IDs (0) 0 Alien Tech Used (0) 0 Bonus (0) 0 TOTAL SCORE: 1109 Bonus ------- None Cogmind --------- Core Integrity 0/250 Matter 280/300 Energy 240/250 System Corruption 0% Temperature Cool (0) Movement Treading (160) Location -10/Mines Parts ------- > --- POWER (1) -------- Ion Engine > --- PROPULSION (2) --- Light Treads Light Treads > --- UTILITY (2) ------ Large Storage Unit Light Armor Plating > --- WEAPON (2) ------- Small Laser Grenade Launcher > --- INVENTORY (15) --- Ion Engine Compact Wheel Compact Wheel Heat Sink High-capacity Matter Pod (200) Light Armor Plating Light Armor Plating Light Armor Plating Small Laser Assault Rifle Hammer Peak State ------------ > --- POWER ------------ Ion Engine > --- PROPULSION ------- Aluminum Leg Aluminum Leg > --- UTILITY ---------- Large Storage Unit Tractor Beam > --- WEAPON ----------- Small Laser Small Laser > --- INVENTORY -------- Ion Engine Light Treads Light Treads Wheel Compact Wheel Heat Sink Small Storage Unit EM Pulse Gun Small Laser Assault Rifle [Rating: 8] Favorites ----------- Power Ion Engine Engine Ion Engine Propulsion Compact Wheel Treads Light Treads Leg Aluminum Leg Wheel Compact Wheel Utility Large Storage Unit Device Tractor Beam Storage Large Storage Unit Processor Signal Interpreter Protection Light Armor Plating Weapon Small Laser Energy Gun Small Laser Ballistic Gun Assault Rifle Launcher Grenade Launcher Impact Weapon Hammer Build | -11 -10 -10 ------- Run | Yrd Mat Min Slots Evolved . | . . . Power . | . . . Propulsion . | . . . Utility . | . . . Weapon . | . . . Parts Attached 25 | 2 21 2 Power 2 | . 2 . Engine 2 | . 2 . Core . | . . . Reactor . | . . . Propulsion 4 | . 4 . Treads 2 | . 2 . Leg . | . . . Wheel 2 | . 2 . Hover . | . . . Flight . | . . . Utility 7 | 1 6 . Device 1 | 1 . . Storage 1 | . 1 . Processor 1 | . 1 . Hackware . | . . . Protection 4 | . 4 . Artifact . | . . . Weapon 12 | 1 9 2 Energy Gun 3 | 1 2 . Energy Cannon . | . . . Ballistic Gun 4 | . 3 1 Ballistic Cannon . | . . . Launcher 4 | . 3 1 Special Weapon . | . . . Impact Weapon 1 | . 1 . Slashing Weapon . | . . . Piercing Weapon . | . . . Special Melee Weapon . | . . . Unidentified Prototypes . | . . . Parts Lost . | . . . Power . | . . . Propulsion . | . . . Utility . | . . . Weapon . | . . . Highest Loss Streak . | . . . To Critical Strikes . | . . . Average Slot Usage (%) 99 | . 99 100 Engine 14 | . 14 14 Treads 5 | . . 28 Leg 6 | . 7 . Wheel 16 | . 19 . Device 3 | . 4 . Storage 14 | . 14 14 Protection 9 | . 8 14 Energy Gun 19 | . 20 14 Ballistic Gun 5 | . 5 7 Launcher 1 | . . 6 Impact Weapon 1 | . 1 . Peak Build Rating 8 | 7 8 8 Average Rating 7 | 6 7 8 On Entrance 7 | 6 7 8 Naked Turns . | . . . Heaviest Build 32 | 13 32 32 Greatest Support 40 | 20 40 40 Greatest Overweight (x) 1 | . 1 . Average Overweight (x) . | . . . Largest Inventory Capacity 15 | 8 15 15 Average Capacity 14 | 8 14 15 Most Carried 15 | 7 15 11 Average Carried 12 | 6 13 10 Final Capacity 15 | 8 15 15 Final Carried 11 | 6 10 11 Class Distribution -------------------- 100% | Mutant Dominant Class ---------------- Mutant | -10/Materials Mutant | -10/Mines Resources | -11 -10 -10 ----------- Run | Yrd Mat Min Matter Collected 761 | 220 416 125 Remotely 20 | 10 10 . Salvage Created 956 | 109 674 173 Parts 49 | 2 38 9 Haulers Intercepted 2 | . 2 . Recyclers Shooed . | . . . Parts Field Recycled . | . . . Retrieved Matter . | . . . Parts Self-Destructed . | . . . Prevented . | . . . Kills | -11 -10 -10 ------- Run | Yrd Mat Min Combat Hostiles Destroyed 22 | . 19 3 Guns 16 | . 14 2 AOE 6 | . 5 1 Classes Destroyed 6 | 2 4 . Worker 1 | . 1 . Tunneler 1 | 1 . . Hauler 2 | . 2 . Recycler 3 | 1 1 1 Swarmer 10 | . 9 1 Grunt 12 | . 10 2 Best Kill Streak 5 | 2 5 3 Combat Bots Only 4 | . 4 2 Max Kills in Single Turn 3 | 1 3 1 Gunslinging . | . . . Exploded 3 | . 3 1 Melee . | . . . Uniques/NPCs Destroyed . | . . . Combat | -11 -10 -10 -------- Run | Yrd Mat Min Hostile Shots Fired 95 | . 84 11 Missed 23 | . 19 4 Damage Taken 802 | . 687 115 Core 250 | . 228 22 Absorbed by Shields . | . . . Core Remaining (%) 100 | 100 . . Volleys Fired 76 | 10 56 10 Largest 2 | 2 2 2 Hottest 80 | 80 80 60 Shots Fired 146 | 20 107 19 Gun 143 | 20 105 18 Cannon . | . . . Launcher 3 | . 2 1 Special . | . . . Kinetic 39 | . 30 9 Thermal 104 | 20 75 9 Explosive 3 | . 2 1 Electromagnetic . | . . . Robot Hit Streak 13 | 6 13 6 Robot Miss Streak 3 | 3 2 1 Penetration Max . | . . . Secondary Targets 2 | . 2 . Max Gunslinging Chain 1 | . 1 . Shots Hit Robots 98 | 13 73 12 Core Hits 50 | 3 39 8 Critical Kills . | . . . Critical Parts Destroyed . | . . . Critical Strikes . | . . . Melee Attacks 3 | . 3 . Impact 3 | . 3 . Slashing . | . . . Piercing . | . . . Sneak Attacks 1 | . 1 . Combat Hostiles . | . . . Follow-up Attacks . | . . . Damage Inflicted 1524 | 143 1177 204 Guns 1099 | 143 815 141 Cannons . | . . . Explosions 325 | . 278 47 Melee 69 | . 69 . Ramming 31 | . 15 16 Kinetic 309 | . 223 86 Thermal 790 | 143 592 55 Explosive 325 | . 278 47 Electromagnetic . | . . . Impact 69 | . 69 . Slashing . | . . . Piercing . | . . . Highest Corruption . | . . . Average Corruption . | . . . Corruption Purged . | . . . Corruption Blocked . | . . . Overload Shots . | . . . Overflow Damage 3 | . 3 . Projectiles . | . . . Explosions 3 | . 3 . Melee . | . . . Knockbacks . | . . . Impact . | . . . Kinetic . | . . . Secondary . | . . . Self-Inflicted Damage 32 | . 6 26 Shots 1 | . . 1 Rammed 5 | . 4 1 Targets Rammed 5 | . 4 1 Kicked . | . . . Crushed . | . . . Highest Temperature 232 | 180 232 144 Average Temperature 76 | 91 73 77 Received Heat Transfer 378 | . 306 72 Effects 1 | . 1 . Interference 1 | . 1 . Siege Activations . | . . . Robots Corrupted . | . . . Combat Hostiles . | . . . Parts Fried . | . . . Impact Corruptions . | . . . Robots Melted . | . . . Combat Hostiles . | . . . Parts Melted 5 | 1 4 . Heat Transferred 1775 | 325 1325 125 Parts Sabotaged . | . . . Parts Stolen . | . . . Parts Stripped . | . . . Power Chain Reactions . | . . . Alert | -11 -10 -10 ------- Run | Yrd Mat Min Peak Influence 356 | 10 356 188 Initial 133 | . 6 133 Average 145 | 4 148 160 Maximum Alert Level 1 | . 1 . Low Security (%) 68 | 100 60 100 Level 1 31 | . 39 . Level 2 . | . . . Level 3 . | . . . Level 4 . | . . . Level 5 . | . . . High Security . | . . . Max Security . | . . . Squads Dispatched 6 | . 6 . Investigation 3 | . 3 . Extermination . | . . . Reinforcement 3 | . 3 . Assault . | . . . Garrison . | . . . Intercept . | . . . Searches Triggered . | . . . Construction Impeded . | . . . Haulers Reinforced . | . . . Active Scanning Responses . | . . . Cargo Convoy Interrupts . | . . . Stealth | -11 -10 -10 --------- Run | Yrd Mat Min Distress Signals 1 | . 1 . Communications Jammed . | . . . Distress Signals . | . . . Times Spotted 33 | . 28 5 Peak Tracking Total 5 | . 5 3 Tactical Retreats 1 | . 1 . Traps | -11 -10 -10 ------- Run | Yrd Mat Min Traps Triggered 3 | . 3 . Indirectly . | . . . Trap Hack Attempts . | . . . Triggered . | . . . Disarmed . | . . . Reprogrammed . | . . . Reused . | . . . Traps Extracted . | . . . Installed . | . . . Triggered . | . . . Machines | -11 -10 -10 ---------- Run | Yrd Mat Min Machines Disabled . | . . . Max in Single Turn . | . . . Machines Repaired . | . . . Machines Dismantled . | . . . Machines Sabotaged . | . . . Overloaded Fab Kills . | . . . Hacking | -11 -10 -10 --------- Run | Yrd Mat Min Machines Accessed 10 | . 9 1 Terminals 7 | . 6 1 Fabricators . | . . . Repair Stations 1 | . 1 . Recycling Units 2 | . 2 . Scanalyzers . | . . . Garrison Access . | . . . Total Hacks 26 | . 21 5 Successful 12 | . 11 1 Failed 14 | . 10 4 Catastrophic 2 | . 2 . Database Lockouts . | . . . Manual 23 | . 18 5 Terminals 19 | . 14 5 Fabricators . | . . . Repair Stations 1 | . 1 . Recycling Units 6 | . 6 . Scanalyzers . | . . . Garrison Access . | . . . Terminal Hacks 2 | . 2 . Locate Traps 1 | . 1 . Recall Investigation 1 | . 1 . Fabricator Hacks . | . . . Repair Station Hacks . | . . . Recycling Unit Hacks 2 | . 2 . Report Inventory 2 | . 2 . Scanalyzer . | . . . Garrison Access Hacks . | . . . Unauthorized Hacks 8 | . 7 1 Terminals 4 | . 3 1 Track 1 | . . 1 Botnet 3 | . 3 . Fabricators . | . . . Repair Stations 1 | . 1 . Mechanics 1 | . 1 . Recycling Units 3 | . 3 . Monitor 1 | . 1 . Reject 1 | . 1 . Recyclers 1 | . 1 . Scanalyzers . | . . . Garrison Access . | . . . Data Cores Recovered . | . . . Used . | . . . Hacking Detections 8 | . 7 1 Full Trace Events 1 | . 1 . Feedback Events . | . . . Feedback Blocked . | . . . Robot Schematics Acquired . | . . . Robots Built . | . . . Authchips . | . . . Time . | . . . Total Robot Build Rating . | . . . Part Schematics Acquired . | . . . Parts Built . | . . . Authchips . | . . . Time . | . . . Total Part Build Rating . | . . . Parts Repaired . | . . . Time . | . . . Parts Recycled . | . . . Recycled Matter . | . . . Retrieved Matter . | . . . Retrieved Components . | . . . Parts Scanalyzed . | . . . Part Schematics Acquired . | . . . Parts Damaged . | . . . Bothacking | -11 -10 -10 ------------ Run | Yrd Mat Min Used RIF Installer . | . . . Robots Hacked . | . . . Non-combat . | . . . Combat . | . . . Robot Hacks Applied . | . . . Relay Couplers Released . | . . . Fabnet Peak Effective % . | . . . Robots Rewired . | . . . Allies Hacked . | . . . Hacks Repelled . | . . . Allies | -11 -10 -10 -------- Run | Yrd Mat Min Total Allies . | . . . Largest Group . | . . . Highest-Rated Group . | . . . Highest-Rated Ally . | . . . Total Orders . | . . . Ally Attacks . | . . . Total Damage . | . . . Kills . | . . . Allies Corrupted . | . . . Allies Melted . | . . . Intel | -11 -10 -10 ------- Run | Yrd Mat Min Robot Analysis Total . | . . . Derelict Logs Recovered 2 | . . 2 Drone Launches . | . . . Drone Recoveries . | . . . Exploration | -11 -10 -10 ------------- Run | Yrd Mat Min Turns Passed 1418 | 49 1114 255 Spaces Moved 872 | 13 721 138 Core . | . . . Treads 139 | . 1 138 Legs 152 | 13 139 . Wheels 581 | . 581 . Hover . | . . . Flight . | . . . Fastest Speed 100 | 120 100 160 Average Speed 123 | 120 116 160 Slowest Speed 190 | 120 190 160 Overloaded Moves . | . . . Propulsion Burnouts . | . . . Robots Hopped . | . . . Cave-ins Triggered . | . . . Exploration Rate (%) 43 | 3 97 31 Regions Visited 2 Branch Regions 1 Pre-discovered Areas . | . . . Known Exits Taken 1 | . 1 . Unknown Exits Taken 1 | 1 . . Scrap Searched . | . . . Spaces Dug 2 | . 2 . Terrain Destroyed 30 | . 21 9 Melee 2 | . 2 . Projectile . | . . . AOE 28 | . 19 9 Terrain Rammed . | . . . Walls Destroyed . | . . . Machines Disabled . | . . . Actions | -11 -10 -10 --------- Run | Yrd Mat Min Total 1063 | 26 884 153 Wait 44 | 1 42 1 Move 870 | 12 720 138 Hop . | . . . Pick Up 21 | . 20 1 Fast Attach 1 | 1 . . Attach 6 | 1 5 . Detach 2 | 1 1 . Swap 18 | . 16 2 Drop 17 | . 17 . Fire 76 | 10 56 10 Melee 3 | . 3 . Ram 4 | . 4 . Kick . | . . . Crush 1 | . . 1 Escape Stasis . | . . . Rewire . | . . . Trap . | . . . Miscellaneous . | . . . Route ------- -11/Scrapyard -10/Materials (discovered 4 exits: *Mat x3 / *Min) -10/Mines (discovered 2 exits: *Mat / Sub) History --------- Turn | Location | Event 33 | -11/Scrapyard | Discovered new exit (range 3) 50 | -11/Scrapyard | Entered Materials 310 | -10/Materials | Build established: Mutant 493 | -10/Materials | Discovered new exit (range 8) 602 | -10/Materials | Core integrity fell below 50% 671 | -10/Materials | Discovered new exit (range 16) 900 | -10/Materials | Discovered new exit (range 15) 1074 | -10/Materials | Identified exit to Materials 1104 | -10/Materials | Core integrity fell below 20% 1140 | -10/Materials | Discovered new exit (range 16) 1154 | -10/Materials | Identified exit to Mines 1164 | -10/Materials | Entered Mines 1206 | -10/Mines | Discovered exit to Materials (range 9) 1228 | -10/Mines | Identified exit to Subcaves 1357 | -10/Mines | Learned 2 Materials zone layouts 1419 | -10/Mines | Destroyed self with Grenade Launcher Last Messages --------------- 01256_ K-01 Serf collects debris. 01259_ K-01 Serf cleans the Matter Pump. 01272_ K-01 Serf collects debris. 01280_ G-34 Mercenary destroyed. 01284_ Critical hit (Burn: +37). 01288_ R-06 Scavenger collects Sml. Laser. 01291_ R-06 Scavenger collects Heat Sink. 01295_ G-47 Trooper destroyed. 01296_ R-06 Scavenger collects Lgt. Nuclear Core. 01301_ R-06 Scavenger destroyed. 01308_ Acquired Com. Wheel. 01312_ Acquired 41 matter. 01313_ Acquired 48 matter. 01315_ Acquired 36 matter. 01321_ Slammed into K-01 Serf. 01322_ K-01 Serf collects debris. 01357_ Acquired derelict log, extracted data. Data stored: Materials zone layouts (x2). 01419_ S-10 Pest destroyed. [Achievement: Overachiever] Map ----- +----------------------------------------------------+ | ???????????????????????????# ##???????????????? | | ???????????????????????????# ##??????????????? | | ???????????????????????????# #??????????????? | | ???????????????????????????## #??????????????? | | ????????????????????????????# ## ##??????????????? | | ????????????????????????????# ####???????????????? | | ????????????????????????????# #??????????????????? | | ????????????????????????????# #??????????????????? | | ????????????????????????????# #??????????????????? | | ????????????????????????????# #??????????????????? | | ????????????????????????????# ###???####?????????? | | ????????????????????????????# #?## ##????????? | | ????????????????????????????### ### #????????? | | ??????????????????????????????# ## #????????? | | ??????????????????????????????# ## #?????????? | | ????????????????????????#?????# #?????????? | | ???????????????????????? #????#### ##????####?? | | ???????????????????????? #?????## ##????## ##? | | ????????????????????????# #????## ##?????# ## | | ????????????????????????# #???## ##??????# # | | ????????????????????????# #???# ##???????# | | ??????????????????????###[#???# ###????????## | | ????????????????????### % ???# #???????????# "" | | ????????????????????? ???# #?????????### "" | | ??????????????????????? ???# #????????## "" | | ????????????????????????#@ ####%##???##### | | ????????????????????????# #??## ## | | ????????????????????????## ##### #?## ### #? | | ?????????????????????????#r#???#%### ####?# ## | | ?????????????????????????# #???# ## ##????# | | ?????????????????????????# #???# !! ##?????# | | ?????????????????????????# #???#### ##??????#### | | ?????????????????????????# #??????####??????????# | | ?????????????????????????# #????????????????????# | | ????????????????????????? ????????????????????# | | ????????????????????????? ????????????????????# | | ????????????????????????? ????????????????????# | | ?????????????????????????"" ????????????????????# | | ?????????????????????????"" ???????????????###### | | ??????????????????????????? ??????????????## | | ??????????????????????????? ?????????????## | | ??????????????????????????? ?????????????# | | ????????????????????????????????????????# | | ???????????????????????????????????????# ##### | | ????????????????????????????????????# < #????# | | ???????????????????????????????????# #?????# | | ???????????????????????????????????? #??????# | | ???????????????????????????????????? #????##### | | ????????????????????????????????????? ??????# | | ?????????????????????????????????????????????# | +----------------------------------------------------+ Best States ------------- Heat Dissipation 25 Energy Generation 10 Energy Capacity 250 Matter Stores 300 Matter Capacity 300 Sight Range 16 Terrain Scan Density 10 Armor Coverage 150 Evasion (%) 50 Recoil Reduction 2 Item Schematics ----------------- None Robot Schematics ------------------ None Fabricated ------------ Nothing Alien Tech Used ----------------- None Achievements -------------- Overachiever Challenges ------------ None Game ------ Seed AuthchipDimensionalDetonator Manual? 0 Play Time 00:33:08 Cumulative 211.9 hours Start 2024.08.26 @ 18:23:02 End 2024.08.26 @ 18:57:52 Sessions 1 Manual Loads 0 Difficulty Rogue Special Mode None Game No. 81 Rogue 78 Adventurer 0 Explorer 3 Win Type - Total 3 Types 2/0/0/1/0/0/0/0/0 Lore% 27 Gallery% 61 Achievement% 50 Wizard Run 0 Options --------- Layout 2 ASCII 0 Keyboard 1 Movement Numpad Keybinds 0 Fullscreen 2 Font 24/Terminus Map View 76x44 Zoom Use 0% Tactical HUD 1 Map Filters NONE Filters NONE Steam 1 RUN: 175eab58-05f4-467f-8c49-273bf3ccd401